Cogmind - Beta 13 @@@ ROGUE MODE // 2024.03.31 @ 15:26:33 Player: Zerindel Result: Self-destructed Performance ------------- Evolutions (1) 500 Regions Visited (3) 600 Robots Destroyed (9) 45 Value Destroyed (201) 201 Prototype IDs (0) 0 Alien Tech Used (0) 0 Bonus (0) 0 TOTAL SCORE: 1346 Bonus ------- None Cogmind --------- Core Integrity 391/400 Matter 238/300 Energy 250/250 System Corruption 0% Temperature Cool (0) Movement Flying (200) Ox2 Location -9/Materials Parts ------- > --- POWER (1) -------- Ion Engine > --- PROPULSION (3) --- Flight Unit > --- UTILITY (3) ------ ECM Suite Light Armor Plating > --- WEAPON (2) ------- Datajack > --- INVENTORY (5) ---- Light Ion Engine Structural Scanner Seismic Detector Light Cannon Peak State ------------ > --- POWER ------------ Ion Engine > --- PROPULSION ------- Aluminum Leg Aluminum Leg > --- UTILITY ---------- Small Storage Unit Hacking Suite > --- WEAPON ----------- Light Cannon Datajack > --- INVENTORY -------- Ion Engine Aluminum Leg Aluminum Leg Compact Wheel Small Matter Pod EM Pulse Gun Assault Rifle [Rating: 9] Favorites ----------- Power Ion Engine Engine Ion Engine Propulsion Aluminum Leg Leg Aluminum Leg Flight Unit Flight Unit Utility Small Storage Unit Device ECM Suite Storage Small Storage Unit Hackware Hacking Suite Protection Light Armor Plating Weapon Datajack Ballistic Gun Assault Rifle Ballistic Cannon Light Cannon Special Melee Weapon Datajack Build | -11 -10 -10 -9 ------- Run | Yrd Mat Min Mat Slots Evolved 2 | . . . 2 Power . | . . . . Propulsion 1 | . . . 1 Utility 1 | . . . 1 Weapon . | . . . . Parts Attached 18 | 6 10 1 1 Power 2 | 1 1 . . Engine 2 | 1 1 . . Core . | . . . . Reactor . | . . . . Propulsion 6 | 2 4 . . Treads . | . . . . Leg 4 | 2 2 . . Wheel . | . . . . Hover . | . . . . Flight 2 | . 2 . . Utility 5 | 1 2 1 1 Device 1 | . . 1 . Storage 2 | 1 1 . . Processor . | . . . . Hackware 1 | . 1 . . Protection 1 | . . . 1 Artifact . | . . . . Weapon 5 | 2 3 . . Energy Gun . | . . . . Energy Cannon . | . . . . Ballistic Gun 2 | 2 . . . Ballistic Cannon 1 | . 1 . . Launcher . | . . . . Special Weapon . | . . . . Impact Weapon . | . . . . Slashing Weapon . | . . . . Piercing Weapon . | . . . . Special Melee Weapon 2 | . 2 . . Unidentified Prototypes . | . . . . Parts Lost 4 | . 3 . 1 Power . | . . . . Propulsion 2 | . 1 . 1 Utility 1 | . 1 . . Weapon 1 | . 1 . . Highest Loss Streak 2 | . 2 . 1 To Critical Strikes . | . . . . Average Slot Usage (%) 87 | . 92 71 60 Engine 13 | . 14 14 11 Leg 21 | . 26 . . Flight 5 | . 1 28 20 Device 2 | . . 14 11 Storage 14 | . 17 . . Hackware 5 | . 6 . . Ballistic Cannon 10 | . 12 . . Special Melee Weapon 11 | . 11 14 11 Naked Turns . | . . . . Heaviest Build 15 | 13 15 8 11 Greatest Support 20 | 20 20 8 8 Greatest Overweight (x) 2 | . 1 . 2 Average Overweight (x) . | . . . . Largest Inventory Capacity 8 | 8 8 5 5 Average Capacity 7 | 6 7 5 5 Most Carried 8 | 5 8 5 5 Average Carried 6 | 3 6 4 4 Final Capacity 8 | 8 5 5 5 Final Carried 5 | 5 4 5 4 Class Distribution -------------------- 100% | Mutant Dominant Class ---------------- Mutant | -10/Materials Mutant | -10/Mines Mutant | -9/Materials Resources | -11 -10 -10 -9 ----------- Run | Yrd Mat Min Mat Matter Collected 448 | 228 220 . . Remotely . | . . . . Salvage Created 188 | . 188 . . Parts 16 | . 16 . . Haulers Intercepted . | . . . . Recyclers Shooed 1 | . 1 . . Parts Field Recycled . | . . . . Retrieved Matter . | . . . . Parts Self-Destructed . | . . . . Prevented . | . . . . Kills | -11 -10 -10 -9 ------- Run | Yrd Mat Min Mat Combat Hostiles Destroyed 7 | . 7 . . Cannons 7 | . 7 . . Classes Destroyed 4 | . 4 . . Recycler 1 | . 1 . . Operator 1 | . 1 . . Swarmer 3 | . 3 . . Grunt 4 | . 4 . . Best Kill Streak 5 | . 5 . . Combat Bots Only 5 | . 5 . . Max Kills in Single Turn 1 | . 1 . . Gunslinging . | . . . . Exploded . | . . . . Melee . | . . . . Uniques/NPCs Destroyed . | . . . . Combat | -11 -10 -10 -9 -------- Run | Yrd Mat Min Mat Hostile Shots Fired 41 | . 35 . 6 Missed 7 | . 6 . 1 Damage Taken 356 | . 299 . 57 Core 29 | . 20 . 9 Absorbed by Shields . | . . . . Core Remaining (%) 96 | 100 . 92 . Volleys Fired 38 | . 38 . . Largest 1 | . 1 . . Hottest 35 | . 35 . . Shots Fired 38 | . 38 . . Gun . | . . . . Cannon 38 | . 38 . . Launcher . | . . . . Special . | . . . . Kinetic 38 | . 38 . . Thermal . | . . . . Explosive . | . . . . Electromagnetic . | . . . . Robot Hit Streak 4 | . 4 . . Robot Miss Streak 3 | . 3 . . Penetration Max . | . . . . Secondary Targets . | . . . . Shots Hit Robots 26 | . 26 . . Core Hits 10 | . 10 . . Critical Kills . | . . . . Critical Parts Destroyed . | . . . . Critical Strikes . | . . . . Melee Attacks 3 | . 3 . . Impact . | . . . . Slashing . | . . . . Piercing . | . . . . Sneak Attacks . | . . . . Combat Hostiles . | . . . . Follow-up Attacks . | . . . . Damage Inflicted 449 | . 449 . . Guns . | . . . . Cannons 447 | . 447 . . Explosions . | . . . . Melee . | . . . . Ramming 2 | . 2 . . Kinetic 447 | . 447 . . Thermal . | . . . . Explosive . | . . . . Electromagnetic . | . . . . Impact . | . . . . Slashing . | . . . . Piercing . | . . . . Highest Corruption . | . . . . Average Corruption . | . . . . Corruption Purged . | . . . . Corruption Blocked . | . . . . Overload Shots . | . . . . Overflow Damage 20 | . 20 . . Projectiles 20 | . 20 . . Explosions . | . . . . Melee . | . . . . Knockbacks 8 | . 8 . . Impact . | . . . . Kinetic 7 | . 7 . . Secondary 1 | . 1 . . Self-Inflicted Damage . | . . . . Shots . | . . . . Rammed . | . . . . Targets Rammed 1 | . 1 . . Kicked 1 | . 1 . . Crushed . | . . . . Highest Temperature 12 | . 12 . 9 Average Temperature 5 | . 4 . 9 Received Heat Transfer 138 | . 111 . 27 Siege Activations . | . . . . Robots Corrupted . | . . . . Combat Hostiles . | . . . . Parts Fried . | . . . . Impact Corruptions . | . . . . Robots Melted . | . . . . Combat Hostiles . | . . . . Parts Melted . | . . . . Heat Transferred . | . . . . Parts Sabotaged . | . . . . Parts Stolen . | . . . . Parts Stripped . | . . . . Power Chain Reactions . | . . . . Alert | -11 -10 -10 -9 ------- Run | Yrd Mat Min Mat Peak Influence 214 | . 214 83 31 Initial 83 | . . 83 31 Average 68 | . 83 83 29 Maximum Alert Level 1 | . 1 . . Low Security (%) 93 | 100 91 100 100 Level 1 6 | . 8 . . Level 2 . | . . . . Level 3 . | . . . . Level 4 . | . . . . Level 5 . | . . . . High Security . | . . . . Max Security . | . . . . Squads Dispatched 1 | . 1 . . Investigation 1 | . 1 . . Extermination . | . . . . Reinforcement . | . . . . Assault . | . . . . Garrison . | . . . . Intercept . | . . . . Searches Triggered . | . . . . Construction Impeded . | . . . . Haulers Reinforced . | . . . . Active Scanning Responses . | . . . . Cargo Convoy Interrupts . | . . . . Stealth | -11 -10 -10 -9 --------- Run | Yrd Mat Min Mat Distress Signals 1 | . 1 . . Communications Jammed . | . . . . Distress Signals . | . . . . Times Spotted 17 | . 12 . 5 Peak Tracking Total 5 | . 5 . 4 Tactical Retreats 3 | . . . 3 Traps | -11 -10 -10 -9 ------- Run | Yrd Mat Min Mat Traps Triggered . | . . . . Indirectly . | . . . . Trap Hack Attempts . | . . . . Triggered . | . . . . Disarmed . | . . . . Reprogrammed 4 | . 4 . . Reused 1 | . 1 . . Traps Extracted . | . . . . Installed . | . . . . Triggered 1 | . 1 . . Machines | -11 -10 -10 -9 ---------- Run | Yrd Mat Min Mat Machines Disabled . | . . . . Max in Single Turn . | . . . . Machines Repaired . | . . . . Machines Dismantled . | . . . . Machines Sabotaged . | . . . . Overloaded Fab Kills . | . . . . Hacking | -11 -10 -10 -9 --------- Run | Yrd Mat Min Mat Machines Accessed 5 | . 5 . . Terminals 4 | . 4 . . Fabricators . | . . . . Repair Stations . | . . . . Recycling Units 1 | . 1 . . Scanalyzers . | . . . . Garrison Access . | . . . . Total Hacks 20 | . 20 . . Successful 14 | . 14 . . Failed 6 | . 6 . . Catastrophic . | . . . . Database Lockouts . | . . . . Manual . | . . . . Terminals 17 | . 17 . . Fabricators . | . . . . Repair Stations . | . . . . Recycling Units 3 | . 3 . . Scanalyzers . | . . . . Garrison Access . | . . . . Terminal Hacks 11 | . 11 . . Record 2 | . 2 . . Branch Access Points 1 | . 1 . . Emergency Access Points 1 | . 1 . . Terminal Index 1 | . 1 . . Alert Level 1 | . 1 . . Locate Traps 1 | . 1 . . Reprogram Traps 1 | . 1 . . Dispatch Records 1 | . 1 . . Security Status 1 | . 1 . . Assault Status 1 | . 1 . . Fabricator Hacks . | . . . . Repair Station Hacks . | . . . . Recycling Unit Hacks 3 | . 3 . . Recycle Component 1 | . 1 . . Report Inventory 1 | . 1 . . Retrieve Components 1 | . 1 . . Scanalyzer . | . . . . Garrison Access Hacks . | . . . . Unauthorized Hacks . | . . . . Terminals . | . . . . Fabricators . | . . . . Repair Stations . | . . . . Recycling Units . | . . . . Scanalyzers . | . . . . Garrison Access . | . . . . Data Cores Recovered . | . . . . Used . | . . . . Hacking Detections 5 | . 5 . . Full Trace Events . | . . . . Feedback Events . | . . . . Feedback Blocked . | . . . . Robot Schematics Acquired . | . . . . Robots Built . | . . . . Authchips . | . . . . Time . | . . . . Total Robot Build Rating . | . . . . Part Schematics Acquired . | . . . . Parts Built . | . . . . Authchips . | . . . . Time . | . . . . Total Part Build Rating . | . . . . Parts Repaired . | . . . . Time . | . . . . Parts Recycled 1 | . 1 . . Recycled Matter . | . . . . Retrieved Matter . | . . . . Retrieved Components 2 | . 2 . . Parts Scanalyzed . | . . . . Part Schematics Acquired . | . . . . Parts Damaged . | . . . . Bothacking | -11 -10 -10 -9 ------------ Run | Yrd Mat Min Mat Used RIF Installer . | . . . . Robots Hacked 1 | . 1 . . Non-combat 1 | . 1 . . Combat . | . . . . Robot Hacks Applied 1 | . 1 . . parse_system 1 | . 1 . . Relay Couplers Released . | . . . . Fabnet Peak Effective % . | . . . . Robots Rewired . | . . . . Allies Hacked . | . . . . Hacks Repelled . | . . . . Allies | -11 -10 -10 -9 -------- Run | Yrd Mat Min Mat Total Allies . | . . . . Largest Group . | . . . . Highest-Rated Group . | . . . . Highest-Rated Ally . | . . . . Total Orders . | . . . . Ally Attacks . | . . . . Total Damage . | . . . . Kills . | . . . . Allies Corrupted . | . . . . Allies Melted . | . . . . Intel | -11 -10 -10 -9 ------- Run | Yrd Mat Min Mat Robot Analysis Total . | . . . . Derelict Logs Recovered . | . . . . Drone Launches . | . . . . Drone Recoveries . | . . . . Exploration | -11 -10 -10 -9 ------------- Run | Yrd Mat Min Mat Turns Passed 534 | 61 392 24 57 Spaces Moved 384 | 47 242 52 43 Core 16 | 16 . . . Treads . | . . . . Legs 239 | 31 208 . . Wheels . | . . . . Hover . | . . . . Flight 129 | . 34 52 43 Fastest Speed 37 | 50 37 37 37 Average Speed 92 | 96 109 37 59 Slowest Speed 200 | 120 120 37 200 Overloaded Moves . | . . . . Propulsion Burnouts . | . . . . Robots Hopped . | . . . . Cave-ins Triggered . | . . . . Exploration Rate (%) 17 | 3 37 26 3 Regions Visited 3 Branch Regions 1 Pre-discovered Areas . | . . . . Known Exits Taken 1 | . 1 . . Unknown Exits Taken 2 | 1 . 1 . Scrap Searched 1 | . . 1 . Spaces Dug . | . . . . Terrain Destroyed . | . . . . Melee . | . . . . Projectile . | . . . . AOE . | . . . . Terrain Rammed . | . . . . Walls Destroyed . | . . . . Machines Disabled . | . . . . Actions | -11 -10 -10 -9 --------- Run | Yrd Mat Min Mat Total 525 | 63 332 56 74 Wait 47 | . 17 . 30 Move 381 | 46 241 51 43 Hop . | . . . . Pick Up 25 | 11 11 3 . Fast Attach . | . . . . Attach 12 | 6 4 1 1 Detach 1 | . 1 . . Swap 6 | . 6 . . Drop 11 | . 10 1 . Fire 38 | . 38 . . Melee 3 | . 3 . . Ram . | . . . . Kick 1 | . 1 . . Crush . | . . . . Escape Stasis . | . . . . Rewire . | . . . . Trap . | . . . . Miscellaneous . | . . . . Route ------- -11/Scrapyard -10/Materials -10/Mines -9/Materials History --------- Turn | Location | Event 2 | -11/Scrapyard | Met Revision 17 11 | -11/Scrapyard | Discovered new exit (range 16) 62 | -11/Scrapyard | Entered Materials 306 | -10/Materials | Build established: Mutant 317 | -10/Materials | Identified exit to Mines 454 | -10/Materials | Entered Mines 473 | -10/Mines | Discovered new exit (range 10) 478 | -10/Mines | Entered Materials 478 | -9/Materials | Evolved 2 slots: Propulsion x1, Utility x1 535 | -9/Materials | Self-destructed Last Messages --------------- 00446_ K-01 Serf collects debris. 00451_ T-07 Excavator is excavating. LOCATION=MINES GOAL=ESCAPE 00457_ Acquired ECM Suite. 00466_ Acquired Seismic Detector. 00473_ EXIT=FOUND 00475_ K-01 Serf collects debris. 00475_ Searching scrap... 00475_ Found Lgt. Armor Plating. 00475_ Found Lgt. Treads. 00475_ Found 19 Matter. 00476_ Dropped Assault Rifle. 00476_ Acquired Lgt. Armor Plating. 00477_ R-06 Scavenger collects Assault Rifle. PARAMETERS=PROPULSION+1,UTILITY+1 LOCATION=UNKNOWN GOAL=ESCAPE 00529_ Critical hit (Burn: +37). 00529_ Flight Unit destroyed. Map ----- +----------------------------------------------------+ | ????????????????????????????????? | | ????????????????????????????????? | | ??????????? ??????????????????? | | ??????????# ??????????????????? | | ??????????# ??????????????????? | | ??????????# #?????????????????? | | ??????????+ #?????????????????? | | ??????????# #?????????????????? | | ??????????# #?????????????????? | | ??????????# #?????????????????? | | ??????????# #?????????????????? | | ??????????# #?????????????????? | | ??????????# #?????????????????? | | ??????????# +?????????????????? | | ??????????# #?????????????????? | | ??????????# #?????????????????? | | ??????????# #?????????????????? | | ??????????# #?????????????????? | | ??????????# #?????????????????? | | ??????????# #?????????????????? | | ??????????# #?????????????????? | | ??????????# #?????????????????? | | ?########## #?????????????????? | | ?# [ # #?????????????????? | | ?# # #?????????????????? | | ?# """ @ # #?????????????????? | | ?# """"" # #?????????????????? | | ?# """"" + #?????????????????? | | ?# """"" # #?????????????????? | | ?# """ # #?????????????????? | | ?# # #?????????????????? | | ?# #####?????????????????? | | ?##########?????????????????????? | | ????????????????????????????????? | | ????????????????????????????????? | | ????????????????????????????????? | | ????????????????????????????????? | | ????????????????????????????????? | | ????????????????????????????????? | | ????????????????????????????????? | | ????????????????????????????????? | | ????????????????????????????????? | | ????????????????????????????????? | | ????????????????????????????????? | | | | | | | | | | | | | +----------------------------------------------------+ Best States ------------- Heat Dissipation 28 Energy Generation 10 Energy Capacity 250 Matter Stores 276 Matter Capacity 350 Sight Range 16 Terrain Scan Density 10 ECM Strength 1 Armor Coverage 150 Evasion (%) 62 Offensive Hacking 10 Item Schematics ----------------- None Robot Schematics ------------------ None Fabricated ------------ Nothing Alien Tech Used ----------------- None Achievements -------------- None Challenges ------------ None Game ------ Seed GlidesysGravityBarrier Manual? 0 Play Time 00:14:38 Cumulative 2.7 hours Start 2024.03.31 @ 15:12:45 End 2024.03.31 @ 15:26:33 Sessions 1 Manual Loads 0 Difficulty Rogue Special Mode None Game No. 5 Rogue 5 Adventurer 0 Explorer 0 Win Type - Total 0 Types 0/0/0/0/0/0/0/0/0 Lore% 4 Gallery% 7 Achievement% 7 Wizard Run 0 Options --------- Layout 1 ASCII 0 Keyboard 0 Movement Numpad Keybinds 0 Fullscreen 1 Font 24/Smallcaps Map View 50x35 Zoom Use 0% Tactical HUD 1 Map Filters NONE Filters NONE Steam 1 RUN: 4dfced90-e8e3-4e3d-8749-329dedcdeb00